[Event "SVK-ch Open 2018"]
[Site "Banska Stiavnica"]
[Date "2018.07.09"]
[Round "3"]
[White "Pacher, Milan"]
[Black "Sikora, Jan"]
[Result "1-0"]
[ECO "D11"]
[WhiteElo "2467"]
[BlackElo "2209"]
[Annotator "ChessBase"]
[PlyCount "65"]
[EventDate "2018.07.07"]
[EventType "swiss"]
[EventCountry "SVK"]
[SourceTitle "playchess.com"]
[Source "ChessBase"]
[SourceQuality "1"]
[TimeControl "40/5400+30:1800+30"]

1. d4 {[%emt 0:00:11]} d5 {[%emt 0:00:00]} 2. c4 {[%emt 0:00:10]} c6 {[%emt 0:00:00]} 3. Nf3 {[%emt 0:00:06]} Nf6 {[%emt 0:00:08]} 4. e3 {[%emt 0:00:04]} a6 {[%emt 0:04:01]} 5. b3 {[%emt 0:02:00]} Bg4 {[%emt 0:03:11]} 6. Nbd2 {[%emt 0:01:39]} Nbd7 {[%emt 0:04:41]} 7. h3 {[%emt 0:02:29]} Bh5 {[%emt 0:02:38]} 8. g4 {[%emt 0:12:32]} Bg6 {[%emt 0:00:51]} 9. Nh4 {[%emt 0:00:47]} e6 {[%emt 0:04:28]} 10. Nxg6 {[%emt 0:00:57]} hxg6 {[%emt 0:00:10]} 11. Bg2 {[%emt 0:00:24]} Bb4 {[%emt 0:04:36]} 12. O-O {[%emt 0:01:36]} Bxd2 {[%emt 0:03:44]} 13. Bxd2 {[%emt 0:00:04]} Ne4 {[%emt 0:00:24]} 14. Be1 {[%emt 0:03:32]} Ng5 {[%emt 0:06:56]} 15. Kh2 {[%emt 0:00:07]} Qc7+ {[%emt 0:01:23]} 16. f4 {[%emt 0:02:53]} Nf6 {[%emt 0:01:10]} 17. Rc1 {[%emt 0:04:00]} Nge4 {[%emt 0:08:41]} 18. Kg1 {[%emt 0:02:47]} g5 {[%emt 0:00:01]} 19. fxg5 {[%emt 0:01:02]} Nxg5 {[%emt 0:02:19]} 20. h4 {[%emt 0:01:26]} O-O-O {[%emt 0:04:14]} 21. Rxf6 {[%emt 0:02:37]} gxf6 {[%emt 0:02:18]} 22. hxg5 {[%emt 0:00:05]} fxg5 {[%emt 0:07:37]} 23. cxd5 {[%emt 0:02:30]} f5 {[%emt 0:02:55]} 24. dxc6 {[%emt 0:01:00]} b5 {[%emt 0:00:42]} 25. Qf3 {[%emt 0:07:56]} Qh2+ {[%emt 0:04:30]} 26. Kf1 {[%emt 0:00:03]} Rdf8 {[%emt 0:01:37]} 27. Ke2 {[%emt 0:01:29]} Qc7 {[%emt 0:09:15]} 28. gxf5 {[%emt 0:02:34]} exf5 {[%emt 0:01:15]} 29. Qd5 {[%emt 0:01:48]} Rh7 {[%emt 0:03:41]} 30. Qe6+ {[%emt 0:00:10]} Kb8 {[%emt 0:00:45]} 31. Ba5 {[%emt 0:00:08]} Qxa5 {[%emt 0:00:48]} 32. Qd6+ {[%emt 0:00:03]} Ka7 {[%emt 0:04:52]} 33. Qc5+ {[%emt 0:00:05]} 1-0

[Event "SVK-ch Open 2018"]
[Site "Banska Stiavnica"]
[Date "2018.07.09"]
[Round "3"]
[White "Druska, Juraj"]
[Black "Mrvova, Alena"]
[Result "1-0"]
[ECO "B56"]
[WhiteElo "2439"]
[BlackElo "2202"]
[Annotator "NA"]
[PlyCount "83"]
[EventDate "2018.07.07"]
[EventType "swiss"]
[EventCountry "SVK"]
[SourceTitle "playchess.com"]
[Source "ChessBase"]
[SourceQuality "1"]
[TimeControl "40/5400+30:1800+30"]

1. e4 {[%emt 0:00:16]} c5 {[%emt 0:00:00]} 2. Nf3 {[%emt 0:00:08]} Nc6 {[%emt 0:00:52]} 3. d4 {[%emt 0:00:07]} cxd4 {[%emt 0:00:06]} 4. Nxd4 {[%emt 0:00:06]} Nf6 {[%emt 0:01:19]} 5. Nc3 {[%emt 0:00:06]} d6 {[%emt 0:00:41]} 6. f3 {[%emt 0:00:05]} e6 {[%emt 0:04:59]} 7. Be3 {[%emt 0:01:15]} Be7 {[%emt 0:01:26]} 8. Qd2 {[%emt 0:00:04]} a6 {[%emt 0:02:30]} 9. O-O-O {[%emt 0:03:25]} O-O {[%emt 0:05:33]} 10. g4 {[%emt 0:01:31]} Nd7 {[%emt 0:01:28]} 11. h4 {[%emt 0:09:44] LiveBook: 204 Games} Nxd4 {[%emt 0:08:47]} 12. Bxd4 {[%emt 0:07:47]} b5 {[%emt 0:05:10]} 13. g5 {[%emt 0:03:14]} Nb6 $16 {[%emt 0:09:43]} (13... Qa5 $14) 14. f4 {[%emt 0:08:20]} b4 {[%emt 0:09:14]} 15. Ne2 {[%emt 0:06:26]} d5 {[%emt 0:17:46]} 16. e5 {[%emt 0:03:11]} Nc4 {[%emt 0:03:14]} 17. Qd3 {[%emt 0:03:48]} Qa5 {[%emt 0:01:39]} 18. Kb1 {[%emt 0:01:28]} Bd7 {[%emt 0:00:36]} 19. Nc1 {[%emt 0:02:19]} Bb5 {[%emt 0:01:22]} 20. Qh3 {[%emt 0:02:50]} Qc7 {[%emt 0:04:05]} 21. h5 {[%emt 0:03:48]} Rfc8 {[%emt 0:00:55]} 22. Rh2 {[%emt 0:06:45]} Bf8 {[%emt 0:02:54]} 23. g6 {[%emt 0:03:39]} h6 {[%emt 0:00:20]} 24. Bd3 {[%emt 0:02:40]} Na5 {[%emt 0:00:47]} 25. gxf7+ {[%emt 0:01:45]} Qxf7 {[%emt 0:00:09]} 26. Bg6 {[%emt 0:00:16]} Qe7 {[%emt 0:00:38]} 27. f5 {[%emt 0:01:12]} exf5 {[%emt 0:03:22]} 28. Bxf5 {[%emt 0:04:05]} Re8 {[%emt 0:00:17]} 29. b3 {[%emt 0:05:51]} Nc6 {[%emt 0:01:00]} 30. Bb2 {[%emt 0:01:35]} Nxe5 {[%emt 0:02:01]} 31. Rxd5 {[%emt 0:07:49]} Nf7 {[%emt 0:00:09]} 32. Rhd2 {[%emt 0:00:40]} Rad8 {[%emt 0:03:52]} 33. Rxd8 {[%emt 0:04:02]} Rxd8 {[%emt 0:00:04]} 34. Rxd8 {[%emt 0:00:03]} Nxd8 {[%emt 0:00:10]} 35. Nd3 {[%emt 0:00:57]} Be8 {[%emt 0:02:45]} 36. Ne5 {[%emt 0:01:20]} Qd6 {[%emt 0:03:29]} 37. Ng6 {[%emt 0:00:43]} Bxg6 {[%emt 0:00:36]} 38. Bxg6 {[%emt 0:00:45]} Ne6 {[%emt 0:00:32]} 39. Bd3 {[%emt 0:01:11]} Nf4 {[%emt 0:00:55]} 40. Bc4+ {[%emt 0:00:07]} Kh8 {[%emt 0:00:06]} 41. Qf5 {[%emt 0:31:21]} Nxh5 {[%emt 0:18:54]} 42. Qxh5 {[%emt 0:00:00]} 1-0

[Event "SVK-ch Open 2018"]
[Site "Banska Stiavnica"]
[Date "2018.07.09"]
[Round "3"]
[White "Szeberenyi, Adam"]
[Black "Sikorova, Olga"]
[Result "1-0"]
[ECO "E61"]
[WhiteElo "2372"]
[BlackElo "2193"]
[Annotator "NA"]
[PlyCount "89"]
[EventDate "2018.07.07"]
[EventType "swiss"]
[EventCountry "SVK"]
[SourceTitle "playchess.com"]
[Source "ChessBase"]
[SourceQuality "1"]
[TimeControl "40/5400+30:1800+30"]

1. d4 {[%emt 0:00:00]} Nf6 {[%emt 0:00:00]} 2. c4 {[%emt 0:00:00]} g6 {[%emt 0:00:00]} 3. Nc3 {[%emt 0:00:00]} Bg7 {[%emt 0:00:00]} 4. Nf3 {[%emt 0:00:00]} O-O {[%emt 0:00:07]} 5. Bg5 {[%emt 0:00:00]} h6 {[%emt 0:01:56]} 6. Bh4 {[%emt 0:00:00]} c5 {[%emt 0:00:27]} 7. e3 {[%emt 0:00:52]} cxd4 {[%emt 0:00:41]} 8. Nxd4 {[%emt 0:00:37]} Nc6 {[%emt 0:00:26]} 9. Qd2 {[%emt 0:04:01]} b6 {[%emt 0:07:59]} 10. Be2 {[%emt 0:21:57]} Bb7 {[%emt 0:06:54]} 11. Bf3 {[%emt 0:05:45]} g5 {[%emt 0:09:41]} 12. Bg3 {[%emt 0:00:04]} g4 {[%emt 0:04:35]} 13. Bxc6 {[%emt 0:03:23]} dxc6 $11 {[%emt 0:01:01]} 14. O-O-O {[%emt 0:09:12]} c5 {[%emt 0:09:31]} 15. Nf5 {[%emt 0:01:48]} Bxg2 {[%emt 0:00:37]} 16. Qe1 {[%emt 0:07:53]} Qe8 {[%emt 0:04:28]} 17. Rg1 {[%emt 0:05:10]} Bf3 {[%emt 0:01:30]} 18. Be5 {[%emt 0:00:18]} h5 {[%emt 0:16:25]} 19. e4 {[%emt 0:06:43]} Bxd1 {[%emt 0:17:45]} 20. Qe3 {[%emt 0:00:17]} Nh7 {[%emt 0:05:47]} 21. Bxg7 {[%emt 0:05:46]} e6 {[%emt 0:02:53]} 22. Nd6 {[%emt 0:00:44]} Qc6 {[%emt 0:00:49]} 23. Bxf8 {[%emt 0:00:28]} Ba4 {[%emt 0:06:01]} 24. Bh6 {[%emt 0:02:44]} Qxd6 {[%emt 0:01:25]} 25. Nxa4 {[%emt 0:00:06]} Qxh2 {[%emt 0:00:14]} 26. Rd1 {[%emt 0:04:25]} Qh4 {[%emt 0:00:33]} 27. e5 {[%emt 0:03:14]} Rd8 {[%emt 0:00:15]} 28. Rxd8+ {[%emt 0:00:15]} Qxd8 {[%emt 0:00:01]} 29. Nc3 {[%emt 0:00:21]} f5 {[%emt 0:00:48]} 30. exf6 {[%emt 0:02:18]} Qxf6 {[%emt 0:00:01]} 31. Ne4 {[%emt 0:01:56]} Qg6 {[%emt 0:01:17]} 32. Bf4 {[%emt 0:01:21]} h4 {[%emt 0:01:05]} 33. Be5 {[%emt 0:03:44]} Qf5 {[%emt 0:00:36]} 34. Bc3 {[%emt 0:01:39]} h3 {[%emt 0:00:40]} 35. Ng3 {[%emt 0:03:10]} Qg6 {[%emt 0:00:18]} 36. Qe5 {[%emt 0:01:33]} Ng5 {[%emt 0:00:28]} 37. Qb8+ {[%emt 0:00:48]} Kf7 {[%emt 0:00:13]} 38. Qxa7+ {[%emt 0:01:13]} Kg8 {[%emt 0:00:41]} 39. Nh5 {[%emt 0:02:33]} Ne4 {[%emt 0:00:33]} 40. Qa8+ {[%emt 0:00:35]} Kf7 {[%emt 0:00:18]} 41. Qb7+ {[%emt 0:30:08]} Ke8 {[%emt 0:12:58]} 42. Qxe4 {[%emt 0:00:00]} Qxh5 {[%emt 0:00:14]} 43. Qxe6+ {[%emt 0:00:00]} Kf8 {[%emt 0:00:10]} 44. Qf6+ {[%emt 0:00:00]} Ke8 {[%emt 0:00:10]} 45. Qe5+ {[%emt 0:00:00]} 1-0

[Event "SVK-ch Open 2018"]
[Site "Banska Stiavnica"]
[Date "2018.07.09"]
[Round "3"]
[White "Gelle, Istvan"]
[Black "Jencopala, Alexander"]
[Result "1-0"]
[ECO "A80"]
[WhiteElo "2344"]
[BlackElo "1943"]
[Annotator "NA"]
[PlyCount "45"]
[EventDate "2018.07.07"]
[EventType "swiss"]
[EventCountry "SVK"]
[SourceTitle "playchess.com"]
[Source "ChessBase"]
[SourceQuality "1"]
[TimeControl "40/5400+30:1800+30"]

1. d4 f5 {[%emt 0:00:00]} 2. Bf4 {[%emt 0:00:00]} Nf6 {[%emt 0:00:19]} 3. e3 {[%emt 0:00:00]} g6 {[%emt 0:00:32]} 4. h4 h5 {[%emt 0:19:28]} 5. Nf3 {[%emt 0:03:04]} d6 {[%emt 0:04:39]} 6. Bc4 {[%emt 0:01:40]} e6 {[%emt 0:01:35]} 7. c3 {[%emt 0:04:09]} Nc6 {[%emt 0:11:52]} 8. a4 {[%emt 0:00:30]} d5 {[%emt 0:03:08]} 9. Bb5 {[%emt 0:03:54]} Bd6 {[%emt 0:02:08]} 10. a5 {[%emt 0:01:37]} a6 {[%emt 0:02:19]} 11. Bxc6+ $16 {[%emt 0:09:50]} bxc6 {[%emt 0:00:47]} 12. b4 {[%emt 0:00:15]} Qe7 {[%emt 0:03:47]} 13. Nbd2 {[%emt 0:03:39]} Bd7 {[%emt 0:02:23]} 14. Rc1 {[%emt 0:04:54]} Kf7 {[%emt 0:04:35]} 15. Ne5+ {[%emt 0:11:18]} Kg7 {[%emt 0:03:01]} 16. f3 {[%emt 0:09:08]} Rab8 {[%emt 0:05:13]} 17. Qe2 {[%emt 0:00:45]} Rb5 {[%emt 0:01:07]} 18. Qf2 {[%emt 0:00:51]} Be8 {[%emt 0:04:50]} 19. Qg3 {[%emt 0:01:29]} Bf7 {[%emt 0:05:27]} 20. Rh3 {[%emt 0:03:48]} Bxe5 {[%emt 0:07:42]} 21. Bxe5 {[%emt 0:00:37]} Rb7 {[%emt 0:04:23]} 22. Qg5 {[%emt 0:00:40]} Rh7 {[%emt 0:03:46]} 23. Rg3 {[%emt 0:00:52]} 1-0

[Event "SVK-ch Open 2018"]
[Site "Banska Stiavnica"]
[Date "2018.07.09"]
[Round "3"]
[White "Polyik, Peter"]
[Black "Tepper, Frantisek"]
[Result "1-0"]
[ECO "A56"]
[WhiteElo "2311"]
[BlackElo "2050"]
[Annotator "NA"]
[PlyCount "59"]
[EventDate "2018.07.07"]
[EventType "swiss"]
[EventCountry "SVK"]
[SourceTitle "playchess.com"]
[Source "ChessBase"]
[SourceQuality "1"]
[TimeControl "40/5400+30:1800+30"]

1. d4 {[%emt 0:00:00]} Nf6 {[%emt 0:00:00]} 2. c4 {[%emt 0:00:00]} c5 {[%emt 0:00:00]} 3. d5 {[%emt 0:00:00]} e5 {[%emt 0:00:14]} 4. Nc3 {[%emt 0:00:22]} d6 {[%emt 0:00:04]} 5. e4 {[%emt 0:00:12]} Be7 {[%emt 0:00:22]} 6. Bd3 {[%emt 0:00:11]} Nbd7 {[%emt 0:01:05]} 7. Nge2 {[%emt 0:00:56]} Nf8 {[%emt 0:00:12]} 8. Ng3 {[%emt 0:02:18]} Ng6 {[%emt 0:00:19]} 9. Nf5 {[%emt 0:00:13]} O-O {[%emt 0:01:05]} 10. g3 {[%emt 0:01:01]} Re8 {[%emt 0:00:35]} 11. O-O {[%emt 0:08:46]} h6 {[%emt 0:03:21]} 12. a3 {[%emt 0:04:54]} a6 {[%emt 0:11:02]} 13. b4 {[%emt 0:10:38]} b6 {[%emt 0:00:08]} 14. Rb1 {[%emt 0:00:24]} Qc7 {[%emt 0:05:02]} 15. Bd2 {[%emt 0:09:17]} Nf8 $16 {[%emt 0:08:49]} 16. Kg2 {[%emt 0:07:24]} N6h7 {[%emt 0:10:24]} 17. h4 {[%emt 0:00:43]} Bf6 {[%emt 0:02:50]} 18. Kh2 {[%emt 0:06:47]} Kh8 {[%emt 0:00:24]} 19. Rg1 {[%emt 0:01:30]} Qd8 {[%emt 0:04:07]} 20. Bc2 {[%emt 0:01:14]} Qc7 {[%emt 0:05:17]} 21. Ba4 {[%emt 0:03:23]} Bd7 {[%emt 0:02:10]} 22. Bxd7 {[%emt 0:00:31]} Qxd7 {[%emt 0:04:55]} 23. Qa4 {[%emt 0:01:19]} Qc7 {[%emt 0:17:31]} 24. Qc6 {[%emt 0:06:06]} Qxc6 {[%emt 0:00:12]} 25. dxc6 {[%emt 0:00:03]} Rec8 {[%emt 0:00:15]} 26. b5 {[%emt 0:00:06]} Ne6 {[%emt 0:01:39]} 27. Nd5 {[%emt 0:00:55]} axb5 {[%emt 0:02:30]} 28. Nxb6 {[%emt 0:01:40]} bxc4 {[%emt 0:00:53]} 29. Nxa8 {[%emt 0:00:48]} Rxa8 {[%emt 0:00:02]} 30. Nxd6 {[%emt 0:01:05]} 1-0

[Event "SVK-ch Open 2018"]
[Site "Banska Stiavnica"]
[Date "2018.07.09"]
[Round "3"]
[White "Petran, Peter"]
[Black "Lintner, Igor"]
[Result "1/2-1/2"]
[ECO "A00"]
[WhiteElo "2302"]
[BlackElo "2173"]
[Annotator "NA"]
[PlyCount "46"]
[EventDate "2018.07.07"]
[EventType "swiss"]
[EventCountry "SVK"]
[SourceTitle "playchess.com"]
[Source "ChessBase"]
[SourceQuality "1"]
[TimeControl "40/5400+30:1800+30"]

1. g3 {[%emt 0:00:18]} e5 {[%emt 0:00:00]} 2. c4 {[%emt 0:00:21]} Nf6 {[%emt 0:00:31]} 3. Bg2 {[%emt 0:00:06]} d5 {[%emt 0:00:40]} 4. cxd5 {[%emt 0:00:06]} Nxd5 {[%emt 0:00:04]} 5. Nc3 {[%emt 0:00:06]} Nb6 {[%emt 0:00:06]} 6. Nf3 {[%emt 0:00:21]} Nc6 {[%emt 0:00:04]} 7. O-O {[%emt 0:00:08]} Be7 {[%emt 0:00:10]} 8. a3 {[%emt 0:00:36]} a5 {[%emt 0:04:28]} 9. d3 {[%emt 0:00:18]} Be6 {[%emt 0:03:48]} 10. Be3 {[%emt 0:00:20]} O-O {[%emt 0:01:44]} 11. Rc1 {[%emt 0:03:48]} Nd5 {[%emt 0:07:59] LiveBook: 23 Games} 12. Nxd5 {[%emt 0:04:13]} Bxd5 {[%emt 0:00:11]} 13. Bc5 {[%emt 0:00:17]} Re8 {[%emt 0:04:43]} 14. Bxe7 {[%emt 0:02:59]} Rxe7 $11 {[%emt 0:02:20]} 15. Nd2 {[%emt 0:11:15]} Bxg2 {[%emt 0:05:00]} 16. Kxg2 {[%emt 0:00:04]} Qd5+ {[%emt 0:00:16]} 17. Kg1 {[%emt 0:00:19]} Nd4 {[%emt 0:02:57]} 18. Ne4 {[%emt 0:04:57]} Qb5 {[%emt 0:07:18]} 19. e3 {[%emt 0:04:55]} Ne6 {[%emt 0:00:49]} 20. Qc2 {[%emt 0:00:29]} Rd8 {[%emt 0:04:31]} 21. Qc4 {[%emt 0:07:58]} Qxc4 {[%emt 0:03:26]} 22. dxc4 {[%emt 0:00:06]} f5 {[%emt 0:05:18]} 23. Nc3 {[%emt 0:00:23]} c6 {[%emt 0:02:40]} 1/2-1/2

[Event "SVK-ch Open 2018"]
[Site "Banska Stiavnica"]
[Date "2018.07.09"]
[Round "3"]
[White "Stockova, Zuzana"]
[Black "Sosovicka, Jakub"]
[Result "1/2-1/2"]
[ECO "A06"]
[WhiteElo "2301"]
[BlackElo "2078"]
[Annotator "NA"]
[PlyCount "68"]
[EventDate "2018.07.07"]
[EventType "swiss"]
[EventCountry "SVK"]
[SourceTitle "playchess.com"]
[Source "ChessBase"]
[SourceQuality "1"]
[TimeControl "40/5400+30:1800+30"]

1. Nf3 {[%emt 0:03:21]} d5 {[%emt 0:00:00]} 2. g3 {[%emt 0:00:26]} Nf6 {[%emt 0:02:37]} 3. Bg2 {[%emt 0:00:47]} Bf5 {[%emt 0:01:27]} 4. d3 {[%emt 0:01:44]} c6 {[%emt 0:01:57]} 5. O-O {[%emt 0:04:14]} Nbd7 {[%emt 0:01:20]} 6. Nh4 {[%emt 0:00:54]} Bg4 {[%emt 0:04:07]} 7. h3 {[%emt 0:00:37]} Bh5 {[%emt 0:00:28]} 8. Qe1 {[%emt 0:00:51]} e6 {[%emt 0:06:43] LiveBook: 3 Games} 9. e4 {[%emt 0:02:54]} Bc5 {[%emt 0:07:57]} 10. Kh2 {[%emt 0:14:07]} dxe4 $11 {[%emt 0:09:06]} 11. dxe4 {[%emt 0:03:55]} O-O {[%emt 0:00:19]} 12. f4 {[%emt 0:06:19]} Qc7 {[%emt 0:05:57]} 13. Nd2 {[%emt 0:05:59]} Rad8 {[%emt 0:07:14]} 14. a3 {[%emt 0:03:54]} a5 {[%emt 0:08:51]} 15. e5 {[%emt 0:08:00]} Nd5 {[%emt 0:00:55]} 16. Ne4 {[%emt 0:01:06]} Be7 {[%emt 0:00:42]} 17. g4 {[%emt 0:01:34]} Bg6 {[%emt 0:00:38]} 18. Nxg6 {[%emt 0:10:33]} hxg6 {[%emt 0:00:18]} 19. c4 {[%emt 0:00:31]} N5b6 {[%emt 0:03:15]} 20. Qxa5 {[%emt 0:01:42]} Ra8 {[%emt 0:01:04]} 21. Qc3 {[%emt 0:00:40]} Nc5 {[%emt 0:02:02]} 22. Be3 {[%emt 0:09:57]} Nba4 {[%emt 0:05:08]} 23. Qc2 {[%emt 0:00:30]} Rfd8 {[%emt 0:01:48]} 24. Rfd1 {[%emt 0:02:22]} Nxe4 {[%emt 0:02:11]} 25. Bxe4 {[%emt 0:00:34]} Bc5 {[%emt 0:01:17]} 26. Rxd8+ {[%emt 0:07:30]} Rxd8 {[%emt 0:01:28]} 27. Re1 {[%emt 0:03:28]} Qd7 {[%emt 0:07:18]} 28. Bc1 {[%emt 0:01:04]} Qd4 {[%emt 0:05:58]} 29. Bg2 {[%emt 0:00:47]} Qf2 {[%emt 0:08:25]} 30. Qxf2 {[%emt 0:00:41]} Bxf2 {[%emt 0:00:02]} 31. Rf1 {[%emt 0:00:07]} Ba7 {[%emt 0:00:42]} 32. b3 {[%emt 0:03:14]} Nc3 {[%emt 0:01:25]} 33. Bf3 {[%emt 0:00:29]} Rd3 {[%emt 0:00:40]} 34. a4 {[%emt 0:01:28]} Bc5 {[%emt 0:00:43]} 1/2-1/2

[Event "SVK-ch Open 2018"]
[Site "Banska Stiavnica"]
[Date "2018.07.09"]
[Round "3"]
[White "Chmiel, Marcin"]
[Black "Panko, Radoslav"]
[Result "1/2-1/2"]
[ECO "C18"]
[WhiteElo "2249"]
[BlackElo "2049"]
[Annotator "NA"]
[PlyCount "108"]
[EventDate "2018.07.07"]
[EventType "swiss"]
[EventCountry "SVK"]
[SourceTitle "playchess.com"]
[Source "ChessBase"]
[SourceQuality "1"]
[TimeControl "40/5400+30:1800+30"]

1. e4 {[%emt 0:00:04]} e6 {[%emt 0:00:00]} 2. d4 {[%emt 0:00:08]} d5 {[%emt 0:00:00]} 3. Nc3 {[%emt 0:00:10]} Bb4 {[%emt 0:00:00]} 4. e5 {[%emt 0:00:15]} Ne7 {[%emt 0:00:01]} 5. a3 {[%emt 0:02:31]} Bxc3+ {[%emt 0:00:19]} 6. bxc3 {[%emt 0:00:11]} c5 {[%emt 0:00:03]} 7. Qg4 {[%emt 0:00:58]} Qc7 {[%emt 0:00:52]} 8. Qxg7 {[%emt 0:01:47]} Rg8 {[%emt 0:00:09]} 9. Qxh7 {[%emt 0:00:06]} cxd4 {[%emt 0:00:04]} 10. Ne2 {[%emt 0:00:23]} dxc3 {[%emt 0:00:18]} 11. f4 {[%emt 0:00:29]} Nbc6 {[%emt 0:00:31]} 12. h4 {[%emt 0:00:35]} b6 {[%emt 0:06:00]} 13. Qd3 {[%emt 0:04:01]} d4 {[%emt 0:02:39]} 14. Nxd4 {[%emt 0:07:59]} Nxd4 {[%emt 0:00:08]} 15. Qxd4 {[%emt 0:00:08]} Bb7 {[%emt 0:00:51]} 16. Qd6 {[%emt 0:03:09]} Qxd6 $11 {[%emt 0:01:21]} 17. exd6 {[%emt 0:00:08]} Nf5 {[%emt 0:00:26]} 18. h5 {[%emt 0:12:58]} O-O-O {[%emt 0:01:29]} 19. Rh2 {[%emt 0:17:06]} Nd4 {[%emt 0:08:00]} 20. Kf2 {[%emt 0:00:55]} Nxc2 {[%emt 0:01:29]} 21. Ra2 {[%emt 0:00:49]} Nd4 {[%emt 0:00:48]} 22. Rh3 {[%emt 0:05:25]} Nb5 {[%emt 0:09:43]} 23. d7+ {[%emt 0:10:33]} Kb8 {[%emt 0:00:28]} 24. f5 {[%emt 0:03:35]} Nd6 {[%emt 0:01:19]} 25. Bf4 {[%emt 0:01:31]} Rxd7 {[%emt 0:00:39]} 26. h6 {[%emt 0:04:00]} Ka8 {[%emt 0:04:26]} 27. Rd3 {[%emt 0:06:48]} Ne4+ {[%emt 0:04:43]} 28. Ke3 {[%emt 0:00:14]} Bd5 {[%emt 0:07:34]} 29. Be5 {[%emt 0:09:53]} Rc8 {[%emt 0:18:21]} 30. Rc2 {[%emt 0:01:19]} f6 {[%emt 0:04:17]} 31. fxe6 {[%emt 0:00:33]} Bxe6 {[%emt 0:00:20]} 32. Kxe4 {[%emt 0:02:40]} fxe5 {[%emt 0:01:59]} 33. Rcxc3 {[%emt 0:01:43]} Rxc3 {[%emt 0:01:42]} 34. Rxc3 {[%emt 0:00:01]} Rh7 {[%emt 0:00:07]} 35. Kxe5 {[%emt 0:01:16]} Rxh6 {[%emt 0:00:01]} 36. Rc6 {[%emt 0:00:25]} Rh1 {[%emt 0:00:18]} 37. Kxe6 {[%emt 0:01:29]} Rxf1 {[%emt 0:00:04]} 38. g4 {[%emt 0:01:55]} Kb7 {[%emt 0:01:21]} 39. Rc3 {[%emt 0:00:22]} Rg1 {[%emt 0:01:26]} 40. Kf5 {[%emt 0:00:09]} b5 {[%emt 0:05:07]} 41. g5 {[%emt 0:02:19]} a5 {[%emt 0:01:00]} 42. g6 {[%emt 0:03:24]} Kb6 {[%emt 0:00:17]} 43. Re3 {[%emt 0:04:21]} b4 {[%emt 0:00:56]} 44. a4 {[%emt 0:02:02]} Kc5 {[%emt 0:02:47]} 45. Re5+ {[%emt 0:01:00]} Kc4 {[%emt 0:03:35]} 46. Rxa5 {[%emt 0:02:21]} b3 {[%emt 0:07:51]} 47. Rb5 {[%emt 0:00:36]} Rf1+ {[%emt 0:00:28]} 48. Ke6 {[%emt 0:01:06]} Rg1 {[%emt 0:03:01]} 49. Kf7 {[%emt 0:00:27]} Rf1+ {[%emt 0:00:06]} 50. Ke7 {[%emt 0:00:15]} Rg1 {[%emt 0:02:15]} 51. Rb6 {[%emt 0:09:34]} b2 {[%emt 0:00:17]} 52. a5 {[%emt 0:00:34]} Rxg6 {[%emt 0:00:11]} 53. Rxb2 {[%emt 0:00:08]} Ra6 {[%emt 0:00:03]} 54. Kd7 {[%emt 0:00:11]} Rxa5 {[%emt 0:00:08]} 1/2-1/2

[Event "SVK-ch Open 2018"]
[Site "Banska Stiavnica"]
[Date "2018.07.09"]
[Round "3"]
[White "Ruckschloss, Karol"]
[Black "Bango, Lukas"]
[Result "1-0"]
[ECO "A25"]
[WhiteElo "2245"]
[BlackElo "2148"]
[Annotator "NA"]
[PlyCount "61"]
[EventDate "2018.07.07"]
[EventType "swiss"]
[EventCountry "SVK"]
[SourceTitle "playchess.com"]
[Source "ChessBase"]
[SourceQuality "1"]
[TimeControl "40/5400+30:1800+30"]

1. c4 {[%emt 0:00:00]} e5 {[%emt 0:00:00]} 2. Nc3 {[%emt 0:00:00]} Nc6 {[%emt 0:00:00]} 3. g3 {[%emt 0:00:28]} f5 {[%emt 0:00:19]} 4. Bg2 {[%emt 0:00:21]} Nf6 {[%emt 0:00:09]} 5. d3 {[%emt 0:01:07]} g6 {[%emt 0:03:36]} 6. Nf3 {[%emt 0:00:52]} Bg7 {[%emt 0:00:09]} 7. O-O {[%emt 0:00:10]} O-O {[%emt 0:00:07]} 8. Rb1 {[%emt 0:00:06]} a5 {[%emt 0:00:34]} 9. a3 {[%emt 0:04:13]} d6 {[%emt 0:00:51]} 10. b4 {[%emt 0:00:55]} axb4 {[%emt 0:00:05]} 11. axb4 {[%emt 0:00:02]} h6 {[%emt 0:00:58]} 12. Ne1 {[%emt 0:08:54] LiveBook: 7 Games} g5 {[%emt 0:05:31]} 13. e3 $11 {[%emt 0:03:49]} Qe8 {[%emt 0:04:34]} 14. c5 {[%emt 0:07:17]} Kh8 {[%emt 0:13:38]} 15. b5 {[%emt 0:08:24]} Ne7 {[%emt 0:00:16]} 16. b6 {[%emt 0:12:18]} dxc5 {[%emt 0:03:42]} 17. bxc7 {[%emt 0:08:50]} f4 {[%emt 0:05:57]} 18. Bxb7 {[%emt 0:05:11]} Bxb7 {[%emt 0:01:11]} 19. Rxb7 {[%emt 0:00:01]} Qc8 {[%emt 0:01:44]} 20. Qb3 {[%emt 0:04:46]} c4 {[%emt 0:19:06]} 21. dxc4 {[%emt 0:05:42]} Qh3 {[%emt 0:01:49]} 22. Rb8 {[%emt 0:12:17]} e4 {[%emt 0:11:23]} 23. Nxe4 {[%emt 0:01:15]} Nxe4 {[%emt 0:00:04]} 24. Rxa8 {[%emt 0:05:09]} Rxa8 {[%emt 0:01:33]} 25. Qb7 {[%emt 0:00:22]} Rf8 {[%emt 0:16:07]} 26. Qxe4 {[%emt 0:00:19]} fxg3 {[%emt 0:00:04]} 27. hxg3 {[%emt 0:00:20]} Nf5 {[%emt 0:00:14]} 28. Qe6 {[%emt 0:01:20]} g4 {[%emt 0:01:58]} 29. c8=Q {[%emt 0:00:14]} Nxg3 {[%emt 0:00:04]} 30. Qxf8+ {[%emt 0:00:12]} Bxf8 {[%emt 0:00:04]} 31. Bb2+ {[%emt 0:00:19]} 1-0